{"text_format":"2","workbook":"xlsx","n_sheets":10,"sheets":["Quadro RESUMO","Demanda e Local. - Postos","Grupos - 54 Postos","Posto Fixo 24h - Paraíba","Posto Fixo 24h - Ceará","Posto Fixo 24h - Pernambuco","Insumos","Encargos Sociais Paraíba","Encargos Sociais Ceará","Encargos Sociais Pernambuco"],"not_rendered":{"charts":0,"images":1,"macros":0,"external_links":0,"defined_names":14,"comments":3,"pivot_tables":0},"unopened":[],"bounds":{"document_bytes":16777216,"sheet_cells":100000,"run_cost":"one","rows_first":2000,"rows_last":500,"rows_between":2000,"halvings":0,"cell_chars":16384,"cell_head_chars":4096},"cells_cut":0,"cells_raw":0,"read":"whole","date_system":"1900"}

{"sheet":"Quadro RESUMO","index":0,"n_rows":34,"n_cols":6,"rows_kept":34,"cut":false,"hidden":false,"merged":[[32,0,32,4],[33,0,33,4],[10,0,10,5],[23,3,25,3],[23,4,25,4],[23,5,25,5],[26,0,28,2],[26,3,28,3],[26,4,28,4],[26,5,28,5],[29,0,31,2],[29,3,31,3],[29,4,31,4],[29,5,31,5],[4,0,7,5],[22,0,22,2],[23,0,25,2],[13,0,14,0],[13,1,14,5],[15,0,16,0]]}
[]
[]
[]
[]
["Prestação de serviços continuados de vigilância armada, visando à segurança das obras civis, das instalações dos canteiros de obras e dos equipamentos hidromecânicos e eletromecânicos do Eixo Norte do PISF – Projeto de Integração do rio São Francisco com as bacias hidrográficas do nordeste setentrional, com área de atuação no estado de Pernambuco, Paraíba, Ceará e Rio Grande do Norte"]
[]
[]
[]
[]
[]
["ANEXO I - A: QUADRO RESUMO DE FORMAÇÃO DE PREÇOS"]
[]
[]
["Tipo de Serviço:","Posto Fixo de 24 (vinte e quatro) horas diárias, inclusive aos sábados, domingos e feriados, envolvendo 4 (quatro) vigilantes em turnos revezados de 12 (doze) x 36 (trinta e seis) horas."]
[]
["ANO","Valor proposto por empregado","Quant. de empregados por posto","Valor proposto por posto","Quant. de postos","Valor total do serviço MENSAL"]
[null,"( A )","( B )","( C )","( D )","(E = C x D)"]
["PARAÍBA - 2020",{"$f":"ROUND(D18/C18,2)","v":0},4,{"$f":"'Posto Fixo 24h - Paraíba'!E95","v":0},7,{"$f":"D18*E18","v":0}]
["CEARÁ - 2020",{"$f":"ROUND(D19/C19,2)","v":0},4,{"$f":"'Posto Fixo 24h - Ceará'!E94","v":0},12,{"$f":"D19*E19","v":0}]
["PERNAMBUCO - 2020",{"$f":"ROUND(D20/C20,2)","v":0},4,{"$f":"'Posto Fixo 24h - Pernambuco'!E93","v":0},35,{"$f":"D20*E20","v":0}]
[]
[]
["Discriminação dos Postos",null,null,"Nº de Postos","Valor do Posto","Valor Mensal"]
["Posto Fixo de 24 (vinte e quatro) horas diárias, inclusive aos sábados, domingos e feriados, envolvendo 4 (quatro) vigilantes em turnos revezados de 12 (doze) x 36 (trinta e seis) horas. - PARAÍBA",null,null,{"$f":"E18","v":7},{"$f":"'Posto Fixo 24h - Paraíba'!E95","v":0},{"$f":"D24*E24","v":0}]
[]
[]
["Posto Fixo de 24 (vinte e quatro) horas diárias, inclusive aos sábados, domingos e feriados, envolvendo 4 (quatro) vigilantes em turnos revezados de 12 (doze) x 36 (trinta e seis) horas. - CEARÁ",null,null,{"$f":"E19","v":12},{"$f":"'Posto Fixo 24h - Ceará'!E94","v":0},{"$f":"D27*E27","v":0}]
[]
[]
["Posto Fixo de 24 (vinte e quatro) horas diárias, inclusive aos sábados, domingos e feriados, envolvendo 4 (quatro) vigilantes em turnos revezados de 12 (doze) x 36 (trinta e seis) horas. - PERNAMBUCO",null,null,{"$f":"E20","v":35},{"$f":"'Posto Fixo 24h - Pernambuco'!E93","v":0},{"$f":"D30*E30","v":0}]
[]
[]
["TOTAL MENSAL:",{"$nulls":4},{"$f":"SUM(F24:F32)","v":0}]
["TOTAL 12 MESES:",{"$nulls":4},{"$f":"SUM(F33*12)","v":0}]

{"sheet":"Demanda e Local. - Postos","index":1,"n_rows":44,"n_cols":9,"rows_kept":44,"cut":false,"hidden":false,"merged":[[43,0,43,2],[3,0,6,8],[8,0,8,8],[10,0,10,3],[10,5,10,8],[35,5,35,7]]}
[]
[]
[]
["Prestação de serviços continuados de vigilância armada, visando à segurança das obras civis, das instalações dos canteiros de obras e dos equipamentos hidromecânicos e eletromecânicos do Eixo Norte do PISF – Projeto de Integração do rio São Francisco com as bacias hidrográficas do nordeste setentrional, com área de atuação no estado de Pernambuco, Paraíba, Ceará e Rio Grande do Norte"]
[]
[]
[]
[]
["DEMANDA E LOCALIZAÇÃO DOS POSTOS"]
[]
["EIXO NORTE",{"$nulls":4},"EIXO LESTE"]
["Local","Estado","Município","Quant. Necessária de Postos",null,"Local","Estado","Município","Quant. Necessária de Postos"]
["Jati - TUD","Ceará","Jati",1,null,"Areias - EC","Pernambuco","Floresta",1]
["Jati - Portal CAC","Ceará","Jati",1,null,"Areias - TUD","Pernambuco","Floresta",1]
["Atalho - TUD","Ceará","Jati",1,null,"Braúnas - EC","Pernambuco","Floresta",1]
["Porcos - EC","Ceará","Brejo Santo",1,null,"Braúnas - TUD","Pernambuco","Floresta",1]
["Porcos - TUD","Ceará","Brejo Santo",1,null,"Mandantes - TUD","Pernambuco","Floresta",1]
["Cana Brava - TUD","Ceará","Brejo Santo",1,null,"Salgueiro - EC","Pernambuco","Floresta",1]
["Cipó - TUD","Ceará","Brejo Santo",1,null,"Salgueiro - TUD","Pernambuco","Floresta",1]
["Boi I","Ceará","Brejo Santo",1,null,"Muquém - EC","Pernambuco","Floresta",1]
["Boi II - EC","Ceará","Brejo Santo",1,null,"Muquém - TUD","Pernambuco","Floresta",1]
["Canteiro do Lote 02 ","Ceará","Penaforte",1,null,"Cacimba Nova - TUD","Pernambuco","Custodia",1]
["Canteiro Lote 06","Ceará","Mauriti",1,null,"Bagres - EC","Pernambuco","Custodia",1]
["EBI-2","Pernambuco","Cabrobo",1,null,"Bagres - TUD","Pernambuco","Custodia",1]
["EBI-3","Pernambuco","Salgueiro",1,null,"Copiti - EC","Pernambuco","Custodia",1]
["Canteiro Salgueiro - Lote 08","Pernambuco","Salgueiro",1,null,"Copiti - TUD","Pernambuco","Custodia",1]
["Tucutu - TUD","Pernambuco","Cabrobo",1,null,"Moxotó - TUD","Pernambuco","Sertânia",1]
["Terra Nova - TUD","Pernambuco","Cabrobo",1,null,"Barreiros - EC","Pernambuco","Sertânia",1]
["S. Livramento - EC","Pernambuco","Cabrobo",1,null,"Barreiros - TUD","Pernambuco","Sertânia",1]
["S. Livramento - TUD","Pernambuco","Cabrobo",1,null,"Campos - EC","Pernambuco","Sertânia",1]
["Mangueira - TUD","Pernambuco","Salgueiro",1,null,"Campos - TUD","Pernambuco","Sertânia",1]
["Negreiros - EC","Pernambuco","Salgueiro",1,null,"Barro Branco - EC","Pernambuco","Sertânia",1]
["Negreiros -TUD","Pernambuco","Salgueiro",1,null,"Barro Branco - TUD","Pernambuco","Sertânia",1]
["Milagres - EC","Pernambuco","Salgueiro",1,null,"Canteiro Custódia - Lote 10","Pernambuco","Custodia",1]
["Milagres - TUD","Pernambuco","Salgueiro",1,null,"Monteiro - EC (Último Posto do Eixo Leste)","Paraíba","Monteiro",1]
["Canteiro Cabrobó","Pernambuco","Cabrobo",1,null,"Total de Postos - Eixo Leste:",null,null,{"$f":"SUM(I13:I35)","v":23}]
["Túnel Cuncas I - emboque - EC","Ceará","Mauriti",1]
["Morros - TUD","Paraíba","São Jose de Piranhas",1]
["Boa Vista - EC","Paraíba","São Jose de Piranhas",1]
["Boa Vista - TUD","Paraíba","São Jose de Piranhas",1]
["Caiçara - EC  (Último Posto do Eixo Norte)","Paraíba","Cajazeiras",1]
["Caiçara - TUD","Paraíba","Cajazeiras",1]
["Canteiro São José de Piranhas","Paraíba","São Jose de Piranhas",1]
["Total de Postos - Eixo Norte:",null,null,{"$f":"SUM(D13:D43)","v":31}]

{"sheet":"Grupos - 54 Postos","index":2,"n_rows":66,"n_cols":9,"rows_kept":66,"cut":false,"hidden":false,"merged":[[58,0,64,0],[58,7,64,7],[58,8,64,8],[3,0,5,8],[7,0,7,8],[25,0,35,0],[25,7,35,7],[25,8,35,8],[36,0,57,0],[36,7,57,7],[36,8,57,8],[9,6,9,8],[11,0,24,0],[11,7,24,7],[11,8,24,8],[9,0,10,0],[9,1,10,1],[9,2,10,2],[9,3,10,3],[9,4,10,4],[9,5,10,5]]}
[]
[]
[]
["Prestação de serviços continuados de vigilância armada, visando à segurança das obras civis, das instalações dos canteiros de obras e dos equipamentos hidromecânicos e eletromecânicos do PISF – projeto de integração do rio São Francisco com as bacias hidrográficas do nordeste setentrional, com área de atuação no estado de Pernambuco"]
[]
[]
[]
["Divisão dos Grupos - Demandas"]
[]
["GRUPO","LOCAL","MUNICÍPIO","ESTADO","EIXO","QNT. de Postos","VALOR"]
[{"$nulls":6},"Por Posto","Mensal","Anual"]
["GRUPO 01 - Postos Eixo Norte (Pernambuco e Ceará)","Jati - TUD","Jati","Ceará","Norte",1,{"$f":"'Quadro RESUMO'!$D$19","v":0},{"$f":"SUM(G12:G25)","v":0},{"$f":"H12*12","v":0}]
[null,"Jati - Portal CAC","Jati","Ceará","Norte",1,{"$f":"'Quadro RESUMO'!$D$19","v":0}]
[null,"Atalho - TUD","Jati","Ceará","Norte",1,{"$f":"'Quadro RESUMO'!$D$19","v":0}]
[null,"Porcos - EC","Brejo Santo","Ceará","Norte",1,{"$f":"'Quadro RESUMO'!$D$19","v":0}]
[null,"Porcos - TUD","Brejo Santo","Ceará","Norte",1,{"$f":"'Quadro RESUMO'!$D$19","v":0}]
[null,"Cana Brava - TUD","Brejo Santo","Ceará","Norte",1,{"$f":"'Quadro RESUMO'!$D$19","v":0}]
[null,"Cipó - TUD","Brejo Santo","Ceará","Norte",1,{"$f":"'Quadro RESUMO'!$D$19","v":0}]
[null,"Boi I","Brejo Santo","Ceará","Norte",1,{"$f":"'Quadro RESUMO'!$D$19","v":0}]
[null,"Boi II - EC","Brejo Santo","Ceará","Norte",1,{"$f":"'Quadro RESUMO'!$D$19","v":0}]
[null,"Canteiro do Lote 02 ","Penaforte","Ceará","Norte",1,{"$f":"'Quadro RESUMO'!$D$19","v":0}]
[null,"Canteiro Lote 06","Mauriti","Ceará","Norte",1,{"$f":"'Quadro RESUMO'!$D$19","v":0}]
[null,"EBI-2","Cabrobo","Pernambuco","Norte",1,{"$f":"'Quadro RESUMO'!$D$20","v":0}]
[null,"EBI-3","Salgueiro","Pernambuco","Norte",1,{"$f":"'Quadro RESUMO'!$D$20","v":0}]
[null,"Canteiro Salgueiro - Lote 08","Salgueiro","Pernambuco","Norte",1,{"$f":"'Quadro RESUMO'!D20","v":0}]
["GRUPO 02 - Postos Eixo Norte (Pernambuco e Ceará)","Tucutu - TUD","Cabrobo","Pernambuco","Norte",1,{"$f":"'Quadro RESUMO'!$D$20","v":0},{"$f":"SUM(G26:G36)","v":0},{"$f":"H26*12","v":0}]
[null,"Terra Nova - TUD","Cabrobo","Pernambuco","Norte",1,{"$f":"'Quadro RESUMO'!$D$20","v":0}]
[null,"S. Livramento - EC","Cabrobo","Pernambuco","Norte",1,{"$f":"'Quadro RESUMO'!$D$20","v":0}]
[null,"S. Livramento - TUD","Cabrobo","Pernambuco","Norte",1,{"$f":"'Quadro RESUMO'!$D$20","v":0}]
[null,"Mangueira - TUD","Salgueiro","Pernambuco","Norte",1,{"$f":"'Quadro RESUMO'!$D$20","v":0}]
[null,"Negreiros - EC","Salgueiro","Pernambuco","Norte",1,{"$f":"'Quadro RESUMO'!$D$20","v":0}]
[null,"Negreiros -TUD","Salgueiro","Pernambuco","Norte",1,{"$f":"'Quadro RESUMO'!$D$20","v":0}]
[null,"Milagres - EC","Salgueiro","Pernambuco","Norte",1,{"$f":"'Quadro RESUMO'!$D$20","v":0}]
[null,"Milagres - TUD","Salgueiro","Pernambuco","Norte",1,{"$f":"'Quadro RESUMO'!$D$20","v":0}]
[null,"Canteiro Cabrobó","Cabrobo","Pernambuco","Norte",1,{"$f":"'Quadro RESUMO'!$D$20","v":0}]
[null,"Túnel Cuncas I - emboque - EC","Mauriti","Ceará","Norte",1,{"$f":"'Quadro RESUMO'!D19","v":0}]
["GRUPO 03  -Postos Pernambuco","Areias - EC","Floresta","Pernambuco","Leste",1,{"$f":"'Quadro RESUMO'!$D$20","v":0},{"$f":"SUM(G37:G58)","v":0},{"$f":"H37*12","v":0}]
[null,"Areias - TUD","Floresta","Pernambuco","Leste",1,{"$f":"'Quadro RESUMO'!$D$20","v":0}]
[null,"Braúnas - EC","Floresta","Pernambuco","Leste",1,{"$f":"'Quadro RESUMO'!$D$20","v":0}]
[null,"Braúnas - TUD","Floresta","Pernambuco","Leste",1,{"$f":"'Quadro RESUMO'!$D$20","v":0}]
[null,"Mandantes - TUD","Floresta","Pernambuco","Leste",1,{"$f":"'Quadro RESUMO'!$D$20","v":0}]
[null,"Salgueiro - EC","Floresta","Pernambuco","Leste",1,{"$f":"'Quadro RESUMO'!$D$20","v":0}]
[null,"Salgueiro - TUD","Floresta","Pernambuco","Leste",1,{"$f":"'Quadro RESUMO'!$D$20","v":0}]
[null,"Muquém - EC","Floresta","Pernambuco","Leste",1,{"$f":"'Quadro RESUMO'!$D$20","v":0}]
[null,"Muquém - TUD","Floresta","Pernambuco","Leste",1,{"$f":"'Quadro RESUMO'!$D$20","v":0}]
[null,"Cacimba Nova - TUD","Custodia","Pernambuco","Leste",1,{"$f":"'Quadro RESUMO'!$D$20","v":0}]
[null,"Bagres - EC","Custodia","Pernambuco","Leste",1,{"$f":"'Quadro RESUMO'!$D$20","v":0}]
[null,"Bagres - TUD","Custodia","Pernambuco","Leste",1,{"$f":"'Quadro RESUMO'!$D$20","v":0}]
[null,"Copiti - EC","Custodia","Pernambuco","Leste",1,{"$f":"'Quadro RESUMO'!$D$20","v":0}]
[null,"Copiti - TUD","Custodia","Pernambuco","Leste",1,{"$f":"'Quadro RESUMO'!$D$20","v":0}]
[null,"Moxotó - TUD","Sertânia","Pernambuco","Leste",1,{"$f":"'Quadro RESUMO'!$D$20","v":0}]
[null,"Barreiros - EC","Sertânia","Pernambuco","Leste",1,{"$f":"'Quadro RESUMO'!$D$20","v":0}]
[null,"Barreiros - TUD","Sertânia","Pernambuco","Leste",1,{"$f":"'Quadro RESUMO'!$D$20","v":0}]
[null,"Campos - EC","Sertânia","Pernambuco","Leste",1,{"$f":"'Quadro RESUMO'!$D$20","v":0}]
[null,"Campos - TUD","Sertânia","Pernambuco","Leste",1,{"$f":"'Quadro RESUMO'!$D$20","v":0}]
[null,"Barro Branco - EC","Sertânia","Pernambuco","Leste",1,{"$f":"'Quadro RESUMO'!$D$20","v":0}]
[null,"Barro Branco - TUD","Sertânia","Pernambuco","Leste",1,{"$f":"'Quadro RESUMO'!$D$20","v":0}]
[null,"Canteiro Custódia - Lote 10","Custodia","Pernambuco","Leste",1,{"$f":"'Quadro RESUMO'!$D$20","v":0}]
["GRUPO 04 - Postos Paraíba","Morros - TUD","São Jose de Piranhas","Paraíba","Norte",1,{"$f":"'Quadro RESUMO'!D18","v":0},{"$f":"SUM(G59:G65)","v":0},{"$f":"H59*12","v":0}]
[null,"Boa Vista - EC","São Jose de Piranhas","Paraíba","Norte",1,{"$f":"'Quadro RESUMO'!D18","v":0}]
[null,"Boa Vista - TUD","São Jose de Piranhas","Paraíba","Norte",1,{"$f":"'Quadro RESUMO'!D18","v":0}]
[null,"Caiçara - EC","Cajazeiras","Paraíba","Norte",1,{"$f":"'Quadro RESUMO'!D18","v":0}]
[null,"Caiçara - TUD","Cajazeiras","Paraíba","Norte",1,{"$f":"'Quadro RESUMO'!D18","v":0}]
[null,"Canteiro São José de Piranhas","São Jose de Piranhas","Paraíba","Norte",1,{"$f":"'Quadro RESUMO'!D18","v":0}]
[null,"Monteiro - EC","Monteiro","Paraíba","Leste",1,{"$f":"'Quadro RESUMO'!D18","v":0}]
[{"$nulls":5},{"$f":"SUM(F12:F65)","v":54},{"$f":"SUM(G12:G65)","v":0},{"$f":"SUM(H12:H65)","v":0},{"$f":"SUM(I12:I65)","v":0}]

{"sheet":"Posto Fixo 24h - Paraíba","index":3,"n_rows":104,"n_cols":13,"rows_kept":104,"cut":false,"hidden":false,"merged":[[3,0,6,4],[94,0,96,3],[94,4,96,4],[14,1,14,3],[8,0,8,4],[71,1,71,2],[72,1,72,2],[9,0,9,4],[10,0,10,4],[11,0,11,4],[12,1,12,3],[13,1,13,3],[29,1,29,2],[29,3,29,4],[15,1,15,3],[17,0,17,4],[18,0,19,1],[18,2,19,2],[18,3,19,4],[20,0,21,1],[20,2,21,2],[20,3,21,4],[22,0,22,4],[24,0,24,4],[25,0,25,4],[26,0,27,4],[28,0,28,4],[51,0,51,4],[30,1,30,2],[30,3,30,4],[31,1,31,2],[31,3,31,4],[32,1,32,2],[32,3,32,4],[33,1,33,2],[33,3,33,4],[37,0,37,4],[49,0,49,3],[50,0,50,4],[34,0,35,4],[76,0,76,4],[58,0,58,3],[60,0,60,4],[64,0,64,3],[65,0,65,4],[67,0,67,4],[68,1,68,2],[69,1,69,2],[70,1,70,2],[73,1,73,2],[74,0,74,2],[85,0,85,4],[86,0,86,4],[87,0,87,3],[88,1,88,3],[77,1,77,2],[78,1,78,2],[79,1,79,4],[80,1,80,2],[81,1,81,2],[82,1,82,2],[83,1,83,2],[84,0,84,2],[103,0,103,2],[98,0,98,3],[99,0,99,2],[100,0,100,2],[101,0,101,2],[102,0,102,2],[89,1,89,3],[90,1,90,3],[91,1,91,3],[92,0,92,3],[93,1,93,3]]}
[]
[]
[]
["Prestação de serviços continuados de vigilância armada, visando à segurança das obras civis, das instalações dos canteiros de obras e dos equipamentos hidromecânicos e eletromecânicos do Eixo Norte do PISF – Projeto de Integração do rio São Francisco com as bacias hidrográficas do nordeste setentrional, com área de atuação no estado de Pernambuco, Paraíba, Ceará e Rio Grande do Norte"]
[]
[]
[]
[]
["ANEXO I: PLANILHA DE CUSTOS E FORMAÇÃO DE PREÇOS"]
["INSTRUÇÃO NORMATIVA Nº 05 DE 25/05/17 - SLTI/MPOG"]
[]
["DISCRIMINAÇÃO DOS SERVIÇOS (Dados referentes à contratação)"]
["A","Data de apresentação da proposta (dia/mês/ano)",null,null,"2020-08-01"]
["B","Município/UF",null,null,"Paraíba"]
["C","Ano Acordo, Convenção ou Sentença Normativa em Dissídio Coletivo",null,null,2020]
["D ","Nº de meses de execução contratual",null,null,"12 meses"]
[]
["IDENTIFICAÇÃO DO SERVIÇO"]
["Tipo de serviço",null,"Unidade de Medida"," Quantidade total a contratar (em função da unidade de medida)"]
[]
["Vigilância das obras civis, instalações dos canteiros de obras e dos equipamentos hidromecânicos do Eixo Norte do PISF",null,"Posto Fixo",1]
[]
[]
[]
["MÃO-DE-OBRA VINCULADA À EXECUÇÃO CONTRATUAL "]
["Descrição:",{"$nulls":5},"7 dias   x   4,345 semanas no mês   x   7 horas noturnas por dia (calcula 8h)   x   1,25  adicional   /   2  (qnt de pessoas por posto)"]
["Posto Fixo de 24 (vinte e quatro) horas diárias, inclusive aos sábados, domingos e feriados, envolvendo 4 (quatro) vigilantes em turnos revezados de 12 (doze) x 36 (trinta e seis) horas."]
[]
["Dados complementares para composição dos custos referente à mão de obra",{"$nulls":5},"* Hora Diurna: R$ 1.375,49 / 220 horas = R$",null,null,null,{"$f":"1375.49/220","v":6.2522272727272732},null,{"$f":"1375.49/220","v":6.2522272727272732}]
[1,"Tipo de Serviço",null,"Vigilância Patrimonial",null,null,"* Adicional = 20% da Hora diurna = R$",null,null,null,{"$f":"0.2*K29","v":1.2504454545454546},null,{"$f":"1443.08/220","v":6.5594545454545452}]
[2,"Classificação Brasileira de Ocupações (CBO)",null,"5173-30"]
[3,"Salário Normativo da Categoria Proifissinal (com adicional de periculosidade)",null,{"$f":"C40+C41","v":0},{"$nulls":6},{"$f":"7.94*0.2","v":1.5880000000000001},null,{"$f":"6.56*0.2","v":1.3120000000000001}]
[4,"Categoria profissional (vinculada à execução contratual)",null,"Vigilante"]
[5,"Data-base da categoria (dia/mês/ano)",null,"2020-03-01",null,null,{"$f":"(7*4.345*7*1.46)/2","v":155.42064999999999}]
["Observação: Na data de elaboração da planilha de Custos ainda não havia sido homologado a Convenção Coletiva de Trabalho 2020/2021, porém a tabela salarial 2020/2021 já estava vigente, sendo utilizada como base para a precificação."]
[]
[]
["MÓDULO 1: COMPOSIÇÃO DA REMUNERAÇÃO"]
["ITEM","DESCRIÇÃO","Valor Unitário (R$)","Quantidade ","Valor Total (R$)"]
["A","Salário Base (CCT 2019 - cláusula 3ª)",null,4,{"$f":"C40*D40","v":0},null,null,"Salário + Adicional de Periculosidade + Adicional Noturno = R$ 1.527,57"]
["B","Adicional de Periculosidade (CCT 2019 - cláusula 3ª)",null,4,{"$f":"C41*D41","v":0}]
["C","Adicional Noturno (CCT 2020 - cláusula 48ª)",null,2,{"$f":"C42*D42","v":0},null,null,"Hora Noturna = R$ 6,94"]
["D","Hora Noturna Reduzida (CCT 2020 - cláusula 48ª)",null,2,0]
["E","Adicional sobre Hora Noturna Reduzida (CCT 2020 - cláusula 50ª)",null,2,0]
["F","Intervalo Intrajornada Diurna ",null,2,0]
["G","Intervalo Intrajornada Noturna",null,2,{"$f":"C46*D46","v":0}]
["H","DSR sobre Adicionais Noturnos",null,2,0]
["I","DSR sobre intrajornada Diurna",null,2,0]
["J","DSR sobre intrajornada Noturna",null,2,0]
["Total da Remuneração Mensal - Total (01 Posto):",null,null,null,{"$f":"SUM(E40:E49)","v":0}]
[]
["MÓDULO 2: BENEFÍCIOS MENSAIS E DIÁRIOS"]
["ITEM","DESCRIÇÃO","Valor Unitário (R$)","Quantidade por Posto","Valor Total (R$)"]
["A","Vale Transporte (parcela da empresa)",null,4,{"$f":"C54*D54","v":0}]
["B","Auxílio alimentação (Vales, cesta básica, etc.) - CCT 2019 - cláusula 10ª",null,4,0]
["C","Assistência médica/social",null,4,0]
["D","Seguro de vida, invalidez e funeral ",null,4,{"$f":"C57*D57","v":0}]
["E","Mensalidade Sindical",null,4,0]
["Total de Benefícios Mensais e Diários (01 Posto):",null,null,null,{"$f":"SUM(E54:E58)","v":0}]
[]
["MÓDULO 3: INSUMOS DIVERSOS"]
["ITEM","DESCRIÇÃO","Valor Unitário (R$)","Quantidade ","Valor Total (R$)"]
["A","Uniformes",null,4,{"$f":"C63*D63","v":0}]
["B","Armas, materiais e equipamentos, inclusive de proteção individual (EPI)",null,4,{"$f":"C64*D64","v":0}]
["Total de Insumos Diversos (01 Posto):",null,null,null,{"$f":"SUM(E63:E64)","v":0}]
["Nota: Valores mensais por POSTO."]
[]
["MÓDULO 4: ENCARGOS SOCIAIS E TRABALHISTAS - QUADRO-RESUMO"]
["ITEM","DESCRIÇÃO",null,"%","Valor (R$)"]
["4.1","GRUPO \"A\"",null,{"$f":"'Encargos Sociais Paraíba'!D59","v":0.3680000000000001},{"$f":"D70*$E$50","v":0}]
["4.2","GRUPO \"B\"",null,{"$f":"'Encargos Sociais Paraíba'!D60","v":0.25309999999999999},{"$f":"D71*$E$50","v":0}]
["4.3","GRUPO \"C\"",null,{"$f":"'Encargos Sociais Paraíba'!D61","v":0.114},0]
["4.4","GRUPO \"D\"",null,{"$f":"'Encargos Sociais Paraíba'!D62","v":0.10439999999999999},0]
["4.5","GRUPO \"E\"",null,{"$f":"'Encargos Sociais Paraíba'!D63","v":1.03E-2},0]
["TOTAL - Encargos Sociais e Trabalhistas:",null,null,{"$f":"SUM(D70:D74)","v":0.84980000000000011},{"$f":"SUM(E70:E74)","v":0}]
[]
["MÓDULO 5: CUSTOS INDIRETOS, TRIBUTOS E LUCRO"]
["ITEM","DESCRIÇÃO",null,"%","Valor (R$)"]
["A","Custos Indiretos (CI)",null,0.06,{"$f":"D79*(E50+E59+E65+E75)","v":0}]
["B","Tributos (percentual sobre o valor do faturamento)"]
["B.1","Tributos Federais (COFINS/PIS)",null,3.6499999999999998E-2,{"$f":"D103","v":0}]
["B.2","Tributos Estaduais (especificar)",null,0,"-"]
["B.3","Tributos Municipais (ISSQN ou ISS)",null,0.05,{"$f":"D104","v":0}]
["C","Lucro (L)",null,6.7799999999999999E-2,{"$f":"D84*(E50+E59+E65+E75)","v":0}]
["TOTAL - Custos Indiretos, Tributos e Lucro",null,null,{"$f":"SUM(D79:D84)","v":0.21430000000000002},{"$f":"SUM(E79:E84)","v":0}]
[]
["QUADRO RESUMO DO CUSTO POR POSTO DE TRABALHO"]
["Mão de obra vinculada à execução contratual (Valor para 01 Posto = 04 Empregados)",null,null,null,"Valor (R$)"]
["A","Módulo 1 – Composição da Remuneração",null,null,{"$f":"E50","v":0}]
["B","Módulo 2 – Encargos e Benefícios Anuais, Mensais e Diários",null,null,{"$f":"E59","v":0}]
["C","Módulo 3 – Insumos Diversos",null,null,{"$f":"E65","v":0}]
["D","Módulo 4 – Encargos Sociais e Trabalhistas",null,null,{"$f":"E75","v":0}]
["Subtotal (A + B + C + D):",null,null,null,{"$f":"SUM(E89:E92)","v":0}]
["E","Módulo 5 – Custos indiretos, tributos e lucro",null,null,{"$f":"E85","v":0}]
["Valor Total de Posto Fixo de 24 (vinte e quatro) horas diárias, inclusive aos sábados, domingos e feriados, envolvendo 4 (quatro) vigilantes em turnos revezados de 12 (doze) x 36 (trinta e seis) horas:",null,null,null,{"$f":"ROUND(E93+E94,2)","v":0}]
[]
[]
[]
["CÁLCULO PIS/COFINS"]
["P0 = (MÓD 1 + MÓD 2 + MÓD 3 + MÓD 4) + (CI) + (L)",null,null,{"$f":"E50+E59+E65+E75+E79+E84","v":0}]
["P1 = P0/(1 - 0,0865)",null,null,{"$f":"D100/(1-0.0865)","v":0}]
["T = P1 - P0",null,null,{"$f":"D101-D100","v":0}]
["COFINS/PIS = (3,65/8,65) x T",null,null,{"$f":"(3.65/8.65)*D102","v":0}]
["ISS = (5,00/8,65) x T",null,null,{"$f":"(5/8.65)*D102","v":0}]

{"sheet":"Posto Fixo 24h - Ceará","index":4,"n_rows":103,"n_cols":13,"rows_kept":103,"cut":false,"hidden":false,"merged":[[12,1,12,3],[72,1,72,2],[3,0,6,4],[8,0,8,4],[9,0,9,4],[10,0,10,4],[11,0,11,4],[25,0,25,4],[13,1,13,3],[14,1,14,3],[15,1,15,3],[17,0,17,4],[18,0,19,1],[18,2,19,2],[18,3,19,4],[20,0,21,1],[20,2,21,2],[20,3,21,4],[22,0,22,4],[24,0,24,4],[26,0,27,4],[28,0,28,4],[29,1,29,2],[29,3,29,4],[30,1,30,2],[30,3,30,4],[56,0,56,3],[31,1,31,2],[31,3,31,4],[32,1,32,2],[32,3,32,4],[33,1,33,2],[33,3,33,4],[35,0,35,4],[47,0,47,3],[48,0,48,4],[49,0,49,4],[75,0,75,4],[58,0,58,4],[62,0,62,3],[63,0,63,4],[65,0,65,4],[66,1,66,2],[67,1,67,2],[68,1,68,2],[69,1,69,2],[70,1,70,2],[71,1,71,2],[73,0,73,2],[87,1,87,3],[76,1,76,2],[77,1,77,2],[78,1,78,4],[79,1,79,2],[80,1,80,2],[81,1,81,2],[82,1,82,2],[83,0,83,2],[84,0,84,4],[85,0,85,4],[86,0,86,3],[88,1,88,3],[89,1,89,3],[90,1,90,3],[91,0,91,3],[92,1,92,3],[102,0,102,2],[93,4,95,4],[97,0,97,3],[98,0,98,2],[99,0,99,2],[100,0,100,2],[101,0,101,2],[93,0,95,3]]}
[]
[]
[]
["Prestação de serviços continuados de vigilância armada, visando à segurança das obras civis, das instalações dos canteiros de obras e dos equipamentos hidromecânicos e eletromecânicos do Eixo Norte do PISF – Projeto de Integração do rio São Francisco com as bacias hidrográficas do nordeste setentrional, com área de atuação no estado de Pernambuco, Paraíba, Ceará e Rio Grande do Norte"]
[]
[]
[]
[]
["ANEXO I: PLANILHA DE CUSTOS E FORMAÇÃO DE PREÇOS"]
["INSTRUÇÃO NORMATIVA Nº 05 DE 25/05/17 - SLTI/MPOG"]
[]
["DISCRIMINAÇÃO DOS SERVIÇOS (Dados referentes à contratação)"]
["A","Data de apresentação da proposta (dia/mês/ano)",null,null,"2020-08-01"]
["B","Município/UF",null,null,"Ceará"]
["C","Ano Acordo, Convenção ou Sentença Normativa em Dissídio Coletivo",null,null,2020]
["D ","Nº de meses de execução contratual",null,null,"12 meses"]
[]
["IDENTIFICAÇÃO DO SERVIÇO"]
["Tipo de serviço",null,"Unidade de Medida"," Quantidade total a contratar (em função da unidade de medida)"]
[]
["Vigilância das obras civis, instalações dos canteiros de obras e dos equipamentos hidromecânicos do Eixo Norte do PISF",null,"Posto Fixo",1]
[]
[]
[]
["MÃO-DE-OBRA VINCULADA À EXECUÇÃO CONTRATUAL "]
["Descrição:",{"$nulls":5},"7 dias   x   4,345 semanas no mês   x   7 horas noturnas por dia (calcula 8h)   x   1,25  adicional   /   2  (qnt de pessoas por posto)"]
["Posto Fixo de 24 (vinte e quatro) horas diárias, inclusive aos sábados, domingos e feriados, envolvendo 4 (quatro) vigilantes em turnos revezados de 12 (doze) x 36 (trinta e seis) horas."]
[]
["Dados complementares para composição dos custos referente à mão de obra",{"$nulls":5},"* Hora Diurna: R$ 1.745,80 / 220 horas = R$",null,null,null,{"$f":"1745.8/220","v":7.9354545454545455},null,{"$f":"1375.49/220","v":6.2522272727272732}]
[1,"Tipo de Serviço",null,"Vigilância Patrimonial",null,null,"* Adicional = 20% da Hora diurna = R$",null,null,null,{"$f":"0.2*K29","v":1.5870909090909091},null,{"$f":"1443.08/220","v":6.5594545454545452}]
[2,"Classificação Brasileira de Ocupações (CBO)",null,"5173-30"]
[3,"Salário Normativo da Categoria Proifissinal (com adicional de periculosidade)",null,{"$f":"C38+C39","v":0},{"$nulls":6},{"$f":"7.94*0.2","v":1.5880000000000001},null,{"$f":"6.56*0.2","v":1.3120000000000001}]
[4,"Categoria profissional (vinculada à execução contratual)",null,"Vigilante"]
[5,"Data-base da categoria (dia/mês/ano)",null,"2020-01-01",null,null,{"$f":"(7*4.345*7*1.46)/2","v":155.42064999999999}]
[]
["MÓDULO 1: COMPOSIÇÃO DA REMUNERAÇÃO"]
["ITEM","DESCRIÇÃO","Valor Unitário (R$)","Quantidade ","Valor Total (R$)"]
["A","Salário Base (CCT 2019 - cláusula 3ª)",null,4,{"$f":"C38*D38","v":0},null,null,"Salário + Adicional de Periculosidade + Adicional Noturno = R$ 1.527,57"]
["B","Adicional de Periculosidade (CCT 2019 - cláusula 3ª)",null,4,{"$f":"C39*D39","v":0}]
["C","Adicional Noturno (CCT 2020 - cláusula 48ª)",null,2,{"$f":"C40*D40","v":0},null,null,"Hora Noturna = R$ 6,94"]
["D","Hora Noturna Reduzida (CCT 2020 - cláusula 48ª)",null,2,0]
["E","Adicional sobre Hora Noturna Reduzida (CCT 2020 - cláusula 50ª)",null,2,0]
["F","Intervalo Intrajornada (CCT 2020 - cláusula 28ª)",null,2,0]
["G","Intervalo Intrajornada (CCT 2020 - cláusula 28ª)",null,2,{"$f":"C44*D44","v":0}]
["H","DSR sobre Adicionais Noturnos",null,2,0]
["I","DSR sobre intrajornada Diurna",null,2,0]
["J","DSR sobre intrajornada Noturna",null,2,{"$f":"C47*D47","v":0}]
["Total da Remuneração Mensal - Total (01 Posto):",null,null,null,{"$f":"SUM(E38:E47)","v":0}]
[]
["MÓDULO 2: BENEFÍCIOS MENSAIS E DIÁRIOS"]
["ITEM","DESCRIÇÃO","Valor Unitário (R$)","Quantidade por Posto","Valor Total (R$)"]
["A","Vale Transporte (parcela da empresa)",null,4,{"$f":"C52*D52","v":0}]
["B","Auxílio alimentação (Vales, cesta básica, etc.) - CCT 2020 - cláusula 19ª",null,4,0]
["C","Assistência médica/social (CCT 2020 - cláusula 13ª)",null,4,0]
["D","Seguro de vida, invalidez e funeral (CCT 2020 - cláusula 14ª/15ª)",null,4,0]
["E","Mensalidade Sindical",null,4,0]
["Total de Benefícios Mensais e Diários (01 Posto):",null,null,null,{"$f":"SUM(E52:E56)","v":0}]
[]
["MÓDULO 3: INSUMOS DIVERSOS"]
["ITEM","DESCRIÇÃO","Valor Unitário (R$)","Quantidade ","Valor Total (R$)"]
["A","Uniformes",null,4,{"$f":"C61*D61","v":0}]
["B","Armas, materiais e equipamentos, inclusive de proteção individual (EPI)",null,4,{"$f":"C62*D62","v":0}]
["Total de Insumos Diversos (01 Posto):",null,null,null,{"$f":"SUM(E61:E62)","v":0}]
["Nota: Valores mensais por POSTO."]
[]
["MÓDULO 4: ENCARGOS SOCIAIS E TRABALHISTAS - QUADRO-RESUMO"]
["ITEM","DESCRIÇÃO",null,"%","Valor (R$)"]
["4.1","GRUPO \"A\"",null,{"$f":"'Encargos Sociais Ceará'!D63","v":0.3680000000000001},{"$f":"D68*$E$48","v":0}]
["4.2","GRUPO \"B\"",null,{"$f":"'Encargos Sociais Ceará'!D64","v":0.15150000000000002},{"$f":"D69*$E$48","v":0}]
["4.3","GRUPO \"C\"",null,{"$f":"'Encargos Sociais Ceará'!D65","v":0.12630000000000002},0]
["4.4","GRUPO \"D\"",null,{"$f":"'Encargos Sociais Ceará'!D66","v":7.4300000000000005E-2},0]
["4.5","GRUPO \"E\"",null,{"$f":"'Encargos Sociais Ceará'!D67","v":2.9999999999999996E-3},0]
["4.6","GRUPO \"F\"",null,{"$f":"'Encargos Sociais Ceará'!D68","v":0.10059999999999999},{"$f":"D73*$E$48","v":0}]
["TOTAL - Encargos Sociais e Trabalhistas:",null,null,{"$f":"SUM(D68:D72)","v":0.72310000000000019},{"$f":"SUM(E68:E73)","v":0}]
[]
["MÓDULO 5: CUSTOS INDIRETOS, TRIBUTOS E LUCRO"]
["ITEM","DESCRIÇÃO",null,"%","Valor (R$)"]
["A","Custos Indiretos (CI)",null,0.06,{"$f":"D78*(E48+E57+E63+E74)","v":0}]
["B","Tributos (percentual sobre o valor do faturamento)"]
["B.1","Tributos Federais (COFINS/PIS)",null,3.6499999999999998E-2,{"$f":"D102","v":0}]
["B.2","Tributos Estaduais (especificar)",null,0,"-"]
["B.3","Tributos Municipais (ISSQN ou ISS)",null,0.05,{"$f":"D103","v":0}]
["C","Lucro (L)",null,6.7799999999999999E-2,{"$f":"D83*(E48+E57+E63+E74)","v":0}]
["TOTAL - Custos Indiretos, Tributos e Lucro",null,null,{"$f":"SUM(D78:D83)","v":0.21430000000000002},{"$f":"SUM(E78:E83)","v":0}]
[]
["QUADRO RESUMO DO CUSTO POR POSTO DE TRABALHO"]
["Mão de obra vinculada à execução contratual (Valor para 01 Posto = 04 Empregados)",null,null,null,"Valor (R$)"]
["A","Módulo 1 – Composição da Remuneração",null,null,{"$f":"E48","v":0}]
["B","Módulo 2 – Encargos e Benefícios Anuais, Mensais e Diários",null,null,{"$f":"E57","v":0}]
["C","Módulo 3 – Insumos Diversos",null,null,{"$f":"E63","v":0}]
["D","Módulo 4 – Encargos Sociais e Trabalhistas",null,null,{"$f":"E74","v":0}]
["Subtotal (A + B + C + D):",null,null,null,{"$f":"SUM(E88:E91)","v":0}]
["E","Módulo 5 – Custos indiretos, tributos e lucro",null,null,{"$f":"E84","v":0}]
["Valor Total de Posto Fixo de 24 (vinte e quatro) horas diárias, inclusive aos sábados, domingos e feriados, envolvendo 4 (quatro) vigilantes em turnos revezados de 12 (doze) x 36 (trinta e seis) horas:",null,null,null,{"$f":"ROUND(E92+E93,2)","v":0}]
[]
[]
[]
["CÁLCULO PIS/COFINS"]
["P0 = (MÓD 1 + MÓD 2 + MÓD 3 + MÓD 4) + (CI) + (L)",null,null,{"$f":"E48+E57+E63+E74+E78+E83","v":0}]
["P1 = P0/(1 - 0,0865)",null,null,{"$f":"D99/(1-0.0865)","v":0}]
["T = P1 - P0",null,null,{"$f":"D100-D99","v":0}]
["COFINS/PIS = (3,65/8,65) x T",null,null,{"$f":"(3.65/8.65)*D101","v":0}]
["ISS = (5,00/8,65) x T",null,null,{"$f":"(5/8.65)*D101","v":0}]

{"sheet":"Posto Fixo 24h - Pernambuco","index":5,"n_rows":102,"n_cols":13,"rows_kept":102,"cut":false,"hidden":false,"merged":[[12,1,12,3],[3,0,6,4],[8,0,8,4],[9,0,9,4],[10,0,10,4],[11,0,11,4],[25,0,25,4],[13,1,13,3],[14,1,14,3],[15,1,15,3],[17,0,17,4],[18,0,19,1],[18,2,19,2],[18,3,19,4],[20,0,21,1],[20,2,21,2],[20,3,21,4],[22,0,22,4],[24,0,24,4],[26,0,27,4],[28,0,28,4],[29,1,29,2],[29,3,29,4],[30,1,30,2],[30,3,30,4],[57,0,57,3],[31,1,31,2],[31,3,31,4],[32,1,32,2],[32,3,32,4],[33,1,33,2],[33,3,33,4],[34,0,34,4],[36,0,36,4],[48,0,48,3],[49,0,49,4],[50,0,50,4],[74,0,74,4],[59,0,59,4],[63,0,63,3],[64,0,64,4],[66,0,66,4],[67,1,67,2],[68,1,68,2],[69,1,69,2],[70,1,70,2],[71,1,71,2],[72,0,72,2],[86,1,86,3],[75,1,75,2],[76,1,76,2],[77,1,77,4],[78,1,78,2],[79,1,79,2],[80,1,80,2],[81,1,81,2],[82,0,82,2],[83,0,83,4],[84,0,84,4],[85,0,85,3],[87,1,87,3],[88,1,88,3],[89,1,89,3],[90,0,90,3],[91,1,91,3],[101,0,101,2],[92,4,94,4],[96,0,96,3],[97,0,97,2],[98,0,98,2],[99,0,99,2],[100,0,100,2],[92,0,94,3]]}
[]
[]
[]
["Prestação de serviços continuados de vigilância armada, visando à segurança das obras civis, das instalações dos canteiros de obras e dos equipamentos hidromecânicos e eletromecânicos do Eixo Norte do PISF – Projeto de Integração do rio São Francisco com as bacias hidrográficas do nordeste setentrional, com área de atuação no estado de Pernambuco, Paraíba, Ceará e Rio Grande do Norte"]
[]
[]
[]
[]
["ANEXO I: PLANILHA DE CUSTOS E FORMAÇÃO DE PREÇOS"]
["INSTRUÇÃO NORMATIVA Nº 05 DE 25/05/17 - SLTI/MPOG"]
[]
["DISCRIMINAÇÃO DOS SERVIÇOS (Dados referentes à contratação)"]
["A","Data de apresentação da proposta (dia/mês/ano)",null,null,"2020-08-01"]
["B","Município/UF",null,null,"Pernambuco"]
["C","Ano Acordo, Convenção ou Sentença Normativa em Dissídio Coletivo",null,null,2020]
["D ","Nº de meses de execução contratual",null,null,"12 meses"]
[]
["IDENTIFICAÇÃO DO SERVIÇO"]
["Tipo de serviço",null,"Unidade de Medida"," Quantidade total a contratar (em função da unidade de medida)"]
[]
["Vigilância das obras civis, instalações dos canteiros de obras e dos equipamentos hidromecânicos do Eixo Norte do PISF",null,"Posto Fixo",1]
[]
[]
[]
["MÃO-DE-OBRA VINCULADA À EXECUÇÃO CONTRATUAL "]
["Descrição:",{"$nulls":5},"7 dias   x   4,345 semanas no mês   x   7 horas noturnas por dia (calcula 8h)   x   1,25  adicional   /   2  (qnt de pessoas por posto)"]
["Posto Fixo de 24 (vinte e quatro) horas diárias, inclusive aos sábados, domingos e feriados, envolvendo 4 (quatro) vigilantes em turnos revezados de 12 (doze) x 36 (trinta e seis) horas."]
[]
["Dados complementares para composição dos custos referente à mão de obra",{"$nulls":5},"* Hora Diurna: R$ 1.375,49 / 220 horas = R$",null,null,null,{"$f":"1375.49/220","v":6.2522272727272732},null,{"$f":"1375.49/220","v":6.2522272727272732}]
[1,"Tipo de Serviço",null,"Vigilância Patrimonial",null,null,"* Adicional = 20% da Hora diurna = R$",null,null,null,{"$f":"0.2*K29","v":1.2504454545454546},null,{"$f":"1443.08/220","v":6.5594545454545452}]
[2,"Classificação Brasileira de Ocupações (CBO)",null,"5173-30"]
[3,"Salário Normativo da Categoria Proifissinal (com adicional de periculosidade)",null,{"$f":"C39+C40","v":0},{"$nulls":6},{"$f":"7.94*0.2","v":1.5880000000000001},null,{"$f":"6.56*0.2","v":1.3120000000000001}]
[4,"Categoria profissional (vinculada à execução contratual)",null,"Vigilante"]
[5,"Data-base da categoria (dia/mês/ano)",null,"2020-01-01",null,null,{"$f":"(7*4.345*7*1.46)/2","v":155.42064999999999}]
[]
[]
["MÓDULO 1: COMPOSIÇÃO DA REMUNERAÇÃO"]
["ITEM","DESCRIÇÃO","Valor Unitário (R$)","Quantidade ","Valor Total (R$)"]
["A","Salário Base (CCT 2020 - cláusula 3ª)",null,4,{"$f":"C39*D39","v":0},null,null,"Salário + Adicional de Periculosidade + Adicional Noturno = R$ 1.527,57"]
["B","Adicional de Periculosidade (CCT 2020 - cláusula 3ª)",null,4,{"$f":"C40*D40","v":0}]
["C","Adicional Noturno (CCT 2020 - cláusula 48ª)",null,2,{"$f":"C41*D41","v":0},null,null,"Hora Noturna = R$ 6,94"]
["D","Hora Noturna Reduzida (CCT 2020 - cláusula 48ª)",null,2,0]
["E","Adicional sobre Hora Noturna Reduzida (CCT 2020 - cláusula 50ª)",null,2,0]
["F","Intervalo Intrajornada (ACT 2020 - cláusula 6ª) - DIURNA",null,2,0]
["G","Intervalo Intrajornada (ACT 2020 - cláusula 6ª) - NOTURNA",null,2,{"$f":"C45*D45","v":0}]
["H","DSR sobre Adicionais Noturnos (CCT 2019 - cláusula 44ª )",null,2,0]
["I","DSR sobre intrajornada Diurna",null,2,0]
["J","DSR sobre intrajornada Noturna",null,2,0]
["Total da Remuneração Mensal - Total (01 Posto):",null,null,null,{"$f":"SUM(E39:E48)","v":0}]
[]
["MÓDULO 2: BENEFÍCIOS MENSAIS E DIÁRIOS"]
["ITEM","DESCRIÇÃO","Valor Unitário (R$)","Quantidade por Posto","Valor Total (R$)"]
["A","Vale Transporte (parcela da empresa)",null,4,{"$f":"C53*D53","v":0}]
["B","Auxílio alimentação (Vales, cesta básica, etc.) - CCT 2020 - cláusula 13ª",null,4,0]
["C","Assistência médica/social (CCt 2020 - cláusula 15ª)",null,4,0]
["D","Auxílio creche",null,"-","-"]
["E","Seguro de vida, invalidez e funeral (CCT 2020 - cláusula 14ª)",null,4,{"$f":"C57*D57","v":0}]
["Total de Benefícios Mensais e Diários (01 Posto):",null,null,null,{"$f":"SUM(E53:E57)","v":0}]
[]
["MÓDULO 3: INSUMOS DIVERSOS"]
["ITEM","DESCRIÇÃO","Valor Unitário (R$)","Quantidade ","Valor Total (R$)"]
["A","Uniformes",null,4,{"$f":"C62*D62","v":0}]
["B","Armas, materiais e equipamentos, inclusive de proteção individual (EPI)",null,4,{"$f":"C63*D63","v":0}]
["Total de Insumos Diversos (01 Posto):",null,null,null,{"$f":"SUM(E62:E63)","v":0}]
["Nota: Valores mensais por POSTO."]
[]
["MÓDULO 4: ENCARGOS SOCIAIS E TRABALHISTAS - QUADRO-RESUMO"]
["ITEM","DESCRIÇÃO",null,"%","Valor (R$)"]
["4.1","GRUPO \"A\"",null,{"$f":"'Encargos Sociais Pernambuco'!D48","v":0.37540000000000007},{"$f":"D69*$E$49","v":0}]
["4.2","GRUPO \"B\"",null,{"$f":"'Encargos Sociais Pernambuco'!D49","v":0.22639999999999999},{"$f":"D70*$E$49","v":0}]
["4.3","GRUPO \"C\"",null,{"$f":"'Encargos Sociais Pernambuco'!D50","v":6.9100000000000009E-2},0]
["4.4","GRUPO \"D\"",null,{"$f":"'Encargos Sociais Pernambuco'!D51","v":8.4990560000000007E-2},0]
["TOTAL - Encargos Sociais e Trabalhistas:",null,null,{"$f":"SUM(D69:D72)","v":0.75589056000000021},{"$f":"SUM(E69:E72)","v":0}]
[]
["MÓDULO 5: CUSTOS INDIRETOS, TRIBUTOS E LUCRO"]
["ITEM","DESCRIÇÃO",null,"%","Valor (R$)"]
["A","Custos Indiretos (CI)",null,0.06,{"$f":"D77*(E49+E58+E64+E73)","v":0}]
["B","Tributos (percentual sobre o valor do faturamento)"]
["B.1","Tributos Federais (COFINS/PIS)",null,3.6499999999999998E-2,{"$f":"D101","v":0}]
["B.2","Tributos Estaduais (especificar)",null,0,"-"]
["B.3","Tributos Municipais (ISSQN ou ISS)",null,0.05,{"$f":"D102","v":0}]
["C","Lucro (L)",null,6.7799999999999999E-2,{"$f":"D82*(E49+E58+E64+E73)","v":0}]
["TOTAL - Custos Indiretos, Tributos e Lucro",null,null,{"$f":"SUM(D77:D82)","v":0.21430000000000002},{"$f":"SUM(E77:E82)","v":0}]
[]
["QUADRO RESUMO DO CUSTO POR POSTO DE TRABALHO"]
["Mão de obra vinculada à execução contratual (Valor para 01 Posto = 04 Empregados)",null,null,null,"Valor (R$)"]
["A","Módulo 1 – Composição da Remuneração",null,null,{"$f":"E49","v":0}]
["B","Módulo 2 – Encargos e Benefícios Anuais, Mensais e Diários",null,null,{"$f":"E58","v":0}]
["C","Módulo 3 – Insumos Diversos",null,null,{"$f":"E64","v":0}]
["D","Módulo 4 – Encargos Sociais e Trabalhistas",null,null,{"$f":"E73","v":0}]
["Subtotal (A + B + C + D):",null,null,null,{"$f":"SUM(E87:E90)","v":0}]
["E","Módulo 5 – Custos indiretos, tributos e lucro",null,null,{"$f":"E83","v":0}]
["Valor Total de Posto Fixo de 24 (vinte e quatro) horas diárias, inclusive aos sábados, domingos e feriados, envolvendo 4 (quatro) vigilantes em turnos revezados de 12 (doze) x 36 (trinta e seis) horas:",null,null,null,{"$f":"ROUND(E91+E92,2)","v":0}]
[]
[]
[]
["CÁLCULO PIS/COFINS"]
["P0 = (MÓD 1 + MÓD 2 + MÓD 3 + MÓD 4) + (CI) + (L)",null,null,{"$f":"E49+E58+E64+E73+E77+E82","v":0}]
["P1 = P0/(1 - 0,0865)",null,null,{"$f":"D98/(1-0.0865)","v":0}]
["T = P1 - P0",null,null,{"$f":"D99-D98","v":0}]
["COFINS/PIS = (3,65/8,65) x T",null,null,{"$f":"(3.65/8.65)*D100","v":0}]
["ISS = (5,00/8,65) x T",null,null,{"$f":"(5/8.65)*D100","v":0}]

{"sheet":"Insumos","index":6,"n_rows":60,"n_cols":9,"rows_kept":60,"cut":false,"hidden":false,"merged":[[4,0,6,5],[9,0,9,5],[10,0,10,5],[13,0,14,1],[13,2,14,2],[13,3,14,3],[13,4,14,4],[13,5,14,5],[21,1,21,4],[15,1,15,4],[38,0,38,8],[58,2,58,8],[34,1,34,5]]}
[]
[]
[]
[]
["Prestação de serviços continuados de vigilância armada, visando à segurança das obras civis, das instalações dos canteiros de obras e dos equipamentos hidromecânicos e eletromecânicos do Eixo Norte do PISF – Projeto de Integração do rio São Francisco com as bacias hidrográficas do nordeste setentrional, com área de atuação no estado de Pernambuco, Paraíba, Ceará e Rio Grande do Norte"]
[]
[]
[]
[]
["Estimativa de Preços - INSUMOS"]
["Referência: Pesquisa no Google Shopping, realizada em 16/06/2020"]
[]
[]
["Materiais e equipamentos para os postos de vigilância armada:",null,"Preço Unitário (R$)","Consumo anual","Consumo Mensal","Custo Mensal"]
[]
[1,"Uniforme",null,null,null,{"$f":"SUM(F17:F21)","v":{"$error":"#DIV/0!"}}]
["1.1","Camisa",{"$f":"I41","v":{"$error":"#DIV/0!"}},2,{"$f":"D17/12","v":0.16666666666666666},{"$f":"E17*C17","v":{"$error":"#DIV/0!"}}]
["1.2","camisa Interna (malha)",{"$f":"I42","v":{"$error":"#DIV/0!"}},2,{"$f":"D18/12","v":0.16666666666666666},{"$f":"E18*C18","v":{"$error":"#DIV/0!"}}]
["1.3","Calça",{"$error":"#DIV/0!"},2,{"$f":"D19/12","v":0.16666666666666666},{"$f":"E19*C19","v":{"$error":"#DIV/0!"}}]
["1.4","Par de botas (coturnos)",{"$error":"#DIV/0!"},1,{"$f":"D20/12","v":8.3333333333333329E-2},{"$f":"E20*C20","v":{"$error":"#DIV/0!"}}]
["1.5","Boné",{"$error":"#DIV/0!"},2,{"$f":"D21/12","v":0.16666666666666666},{"$f":"E21*C21","v":{"$error":"#DIV/0!"}}]
[2,"Armas, materiais e equipamentos, inclusive de proteção individual (EPI):",null,null,null,{"$f":"SUM(F23:F36)","v":{"$error":"#DIV/0!"}}]
["2.1","Apito de metal, com cordão trançado",{"$f":"I47","v":{"$error":"#DIV/0!"}},{"$f":"1/2","v":0.5},{"$f":"D23/12","v":4.1666666666666664E-2},{"$f":"E23*C23","v":{"$error":"#DIV/0!"}}]
["2.2","Livro de Ocorrências",{"$f":"I48","v":{"$error":"#DIV/0!"}},{"$f":"(12/3)/4","v":1},{"$f":"D24/12","v":8.3333333333333329E-2},{"$f":"E24*C24","v":{"$error":"#DIV/0!"}}]
["2.3","Revólver calibre 38 com, no mínimo, seis tiros e cano de três polegadas",{"$error":"#DIV/0!"},{"$f":"(1/5)/4","v":0.05},{"$f":"D25/11.98","v":4.1736227045075123E-3},{"$f":"E25*C25","v":{"$error":"#DIV/0!"}}]
["2.4","Jet-Loader (carregador rápido) compatível com armamento",{"$error":"#DIV/0!"},{"$f":"1/5/4","v":0.05},{"$f":"D26/11.98","v":4.1736227045075123E-3},{"$f":"E26*C26","v":{"$error":"#DIV/0!"}}]
["2.5","Porta Jet-Loader (carregador rápido) compatível com armamento",{"$error":"#DIV/0!"},{"$f":"(1/2)","v":0.5},{"$f":"D27/12","v":4.1666666666666664E-2},{"$error":"#DIV/0!"}]
["2.6","Coldre",{"$error":"#DIV/0!"},{"$f":"1/2","v":0.5},4.1666666666666664E-2,{"$error":"#DIV/0!"}]
["2.7","Porta Tonfa",{"$error":"#DIV/0!"},{"$f":"1/2","v":0.5},4.1666666666666664E-2,{"$error":"#DIV/0!"}]
["2.8","Cinto Operacional adequado ao armamento e equipamentos fornecidos",{"$error":"#DIV/0!"},{"$f":"1/2","v":0.5},4.1666666666666664E-2,{"$error":"#DIV/0!"}]
["2.9","Tonfa em fibra",{"$error":"#DIV/0!"},{"$f":"(1/5)","v":0.2},1.6666666666666666E-2,{"$error":"#DIV/0!"}]
["2.10","Munições de calibre 38 (10 unidades)",{"$error":"#DIV/0!"},{"$f":"(1/2)/4","v":0.125},1.0416666666666666E-2,{"$error":"#DIV/0!"}]
["2.11","Colete Balístico Nível III, conforme Portaria 191/2006   M.T.E",{"$error":"#DIV/0!"},{"$f":"1/2","v":0.5},4.1666666666666664E-2,{"$error":"#DIV/0!"}]
["2.12","Lanterna tática portátil Recarregavel",{"$error":"#DIV/0!"},{"$f":"1/2","v":0.5},4.1666666666666664E-2,{"$error":"#DIV/0!"}]
["2.14","2.14. Sistema de comunicação digital"]
["2.15","Rádio retransmissor (base fixa / base móvel / portátil)     ",{"$f":"I60","v":{"$error":"#DIV/0!"}},{"$f":"(1/5)/4","v":0.05},{"$f":"D36/12","v":4.1666666666666666E-3},{"$error":"#DIV/0!"}]
[]
[]
["Materiais e equipamentos para os postos de vigilância armada: Preços cotados através do Google Shopping em 16/06/2020"]
[1,"UNIFORME","Preço 01","Preço 02","Preço 03","Preço 04","Preço 05","Preço 06","PREÇO MÉDIO"]
["1.1","Camisa",{"$nulls":6},{"$f":"AVERAGE(C41:H41)","v":{"$error":"#DIV/0!"}}]
["1.2","camisa Interna (malha)",{"$nulls":6},{"$f":"AVERAGE(C42:H42)","v":{"$error":"#DIV/0!"}}]
["1.3","Calça",{"$nulls":6},{"$error":"#DIV/0!"}]
["1.4","Par de botas (coturnos)",{"$nulls":6},{"$error":"#DIV/0!"}]
["1.5","Boné",{"$nulls":6},{"$error":"#DIV/0!"}]
[2,"Armas, materiais e equipamentos, inclusive de proteção individual (EPI)","Preço 01","Preço 02","Preço 03","Preço 04","Preço 05","Preço 06","PREÇO MÉDIO"]
["2.1","Apito de metal, com cordão trançado",{"$nulls":6},{"$error":"#DIV/0!"}]
["2.2","Livro de Ocorrências",{"$nulls":6},{"$error":"#DIV/0!"}]
["2.3","Revólver calibre 38 com, no mínimo, seis tiros e cano de três polegadas",{"$nulls":6},{"$f":"AVERAGE(C49:H49)","v":{"$error":"#DIV/0!"}}]
["2.4","Jet-Loader (carregador rápido) compatível com armamento",{"$nulls":6},{"$error":"#DIV/0!"}]
["2.5","Porta Jet-Loader (carregador rápido) compatível com armamento",{"$nulls":6},{"$error":"#DIV/0!"}]
["2.6","Coldre",{"$nulls":6},{"$error":"#DIV/0!"}]
["2.7","Porta Tonfa",{"$nulls":6},{"$error":"#DIV/0!"}]
["2.8","Cinto Operacional adequado ao armamento e equipamentos fornecidos",{"$nulls":6},{"$error":"#DIV/0!"}]
["2.9","Tonfa em fibra",{"$nulls":6},{"$error":"#DIV/0!"}]
["2.10","Munições de calibre 38 (10 unidades)",{"$nulls":6},{"$error":"#DIV/0!"}]
["2.11","Colete Balístico Nível III, conforme Portaria 191/2006   M.T.E",{"$nulls":6},{"$error":"#DIV/0!"}]
["2.12","Lanterna tática portátil Recarregavel",{"$nulls":6},{"$error":"#DIV/0!"}]
["2.14","Sistema de comunicação digital"]
["2.15","Rádio retransmissor (base fixa / base móvel / portátil)     ",{"$nulls":6},{"$error":"#DIV/0!"}]

{"sheet":"Encargos Sociais Paraíba","index":7,"n_rows":64,"n_cols":5,"rows_kept":64,"cut":false,"hidden":false,"merged":[[4,0,7,4],[33,1,33,2],[30,1,30,2],[41,1,41,2],[42,1,42,2],[9,0,9,4],[10,0,10,4],[11,0,11,3],[13,0,13,4],[14,0,14,4],[26,1,26,2],[15,1,15,2],[16,1,16,2],[17,1,17,2],[18,1,18,2],[19,1,19,2],[20,1,20,2],[21,1,21,2],[28,1,28,2],[29,1,29,2],[31,1,31,2],[32,1,32,2],[22,1,22,2],[23,1,23,2],[24,0,24,2],[25,0,25,4],[27,1,27,2],[53,0,53,2],[46,1,46,2],[59,1,59,2],[34,0,34,2],[35,0,35,4],[36,1,36,2],[37,1,37,2],[38,1,38,2],[62,1,62,2],[60,1,60,2],[61,1,61,2],[63,0,63,2],[39,0,39,2],[40,0,40,4],[48,0,48,2],[43,1,43,2],[44,1,44,2],[45,1,45,2],[47,1,47,2],[50,1,50,2],[51,1,51,2],[57,1,57,2],[52,1,52,2],[58,1,58,2]]}
[]
[]
[]
[]
["Prestação de serviços continuados de vigilância armada, visando à segurança das obras civis, das instalações dos canteiros de obras e dos equipamentos hidromecânicos e eletromecânicos do PISF – projeto de integração do rio São Francisco com as bacias hidrográficas do nordeste setentrional, com área de atuação no estado de Pernambuco"]
[]
[]
[]
[]
["MÓDULO 4: ENCARGOS SOCIAIS E TRABALHISTAS"]
[]
["Total da Remuneração Mensal - Total (01 Posto):",null,null,null,{"$f":"'Posto Fixo 24h - Paraíba'!E50","v":0}]
[]
["MÓDULO 4: ENCARGOS SOCIAIS E TRABALHISTAS"]
["NOTA: Os percentuais dos encargos previdenciários e FGTS, a serem preenchidos na coluna %, são aqueles estabelecidos pela legislação vigente, incidentes sobre a remuneração"]
["4.1","GRUPO \"A\" - Encargos Previdenciários e FGTS",null,"%","Valor (R$)"]
["A","INSS (Art. 22 inciso I da Lei 8.212/91) ",null,0.2,{"$f":"D17*$E$12","v":0}]
["B","FGTS (Art. 15 da Lei 8030/90 art. 7° inciso III CF/88)",null,0.08,{"$f":"D18*$E$12","v":0}]
["C","SAT",null,0.03,{"$f":"D19*$E$12","v":0}]
["D","Salário Educação (Art. 3° inciso I Decreto 87.043/)",null,2.5000000000000001E-2,0]
["E","SESC/SESI (Art. 3° da Lei 8036/90)",null,1.4999999999999999E-2,0]
["F","SENAC/SENAI (Decreto 2.318/86)",null,0.01,0]
["G","SEBRAE (Art. 8° Lei 8029/90 e 8154 de 28/12/90)",null,6.0000000000000001E-3,0]
["H","INCRA  (Lei 7787 de 30/06/890e DL 1146/70)",null,2E-3,0]
["TOTAL - Grupo A:",null,null,{"$f":"SUM(D17:D24)","v":0.3680000000000001},{"$f":"SUM(E17:E24)","v":0}]
[]
["4.2","GRUPO \"B\" - Custo de Reposição do Profissional Ausente ",null,"%","Valor (R$)"]
["A","Férias e terço constitucionsl de férias",null,0.12740000000000001,{"$f":"D28*$E$12","v":0}]
["B","Ausência por Doença",null,3.8600000000000002E-2,0]
["C","Licença Paternidade",null,5.9999999999999995E-4,0]
["D","Ausências Legais",null,1.4800000000000001E-2,0]
["E","Ausência por Acidente de Trabalho",null,3.5999999999999999E-3,0]
["F","Outros",null,0,0]
["G","Incidência do Aviso Prévio Indenizado sobre o Custo de Reposição ",null,6.8099999999999994E-2,{"$f":"D34*$E$12","v":0}]
["TOTAL - Grupo B:",null,null,{"$f":"SUM(D28:D34)","v":0.25309999999999999},{"$f":"SUM(E28:E34)","v":0}]
[]
["4.3","GRUPO \"C\" - 13º Salário e Adicional de Férias",null,"%","Valor (R$)"]
["A","13º Salário",null,8.3299999999999999E-2,{"$f":"D38*$E$12","v":0}]
["B","Incidência do Aviso Prévio Indenizado sobre 13º Salário e Adicional de Férias",null,3.0700000000000002E-2,{"$f":"D39*$E$12","v":0}]
["TOTAL - Grupo C:",null,null,{"$f":"SUM(D38:D39)","v":0.114},{"$f":"SUM(E38:E39)","v":0}]
[]
["4.4","GRUPO \"D\" - Provisão para Rescisão",null,"%","Valor (R$)"]
["A","Aviso Prévio Indenizado",null,2.81E-2,{"$f":"D43*$E$12","v":0}]
["B","Incidência do FGTS do aviso prévio indenizado",null,2.2000000000000001E-3,{"$f":"D44*$E$12","v":0}]
["C","Multa do FGTS do Aviso Prévio Indenizado",null,4.0000000000000001E-3,0]
["D","Aviso Prévio Trabalhado",null,1.47E-2,0]
["E","Incidência do Aviso Prévio Indenizado sobre Aviso Prévio Trabalhado",null,5.4000000000000003E-3,{"$f":"D47*$E$12","v":0}]
["F","Multa do FGTS do Aviso Prévio Trabalhado",null,0.05,0]
["TOTAL - Grupo D:",null,null,{"$f":"SUM(D43:D48)","v":0.10439999999999999},{"$f":"SUM(E43:E48)","v":0}]
[]
["4.5","GRUPO \"E\" - Afastamento Maternidade",null,"%","Valor (R$)"]
["A","Afastamento maternidade",null,7.4999999999999997E-3,{"$f":"D52*$E$12","v":0}]
["B","Incidência do Submódulo 4.1 sobre afastamanto maternidade",null,2.8E-3,{"$f":"D53*$E$12","v":0}]
["TOTAL - Grupo E:",null,null,{"$f":"SUM(D52:D53)","v":1.03E-2},{"$f":"SUM(E52:E53)","v":0}]
[]
[]
[]
[4,"(QUADRO-RESUMO) MÓDULO 4: ENCARGOS SOCIAIS E TRABALHISTAS",null,"%","Valor (R$)"]
["4.1","GRUPO \"A\"",null,{"$f":"D25","v":0.3680000000000001},{"$f":"E25","v":0}]
["4.2","GRUPO \"B\"",null,{"$f":"D35","v":0.25309999999999999},{"$f":"E35","v":0}]
["4.3","GRUPO \"C\"",null,{"$f":"D40","v":0.114},{"$f":"E40","v":0}]
["4.4","GRUPO \"D\"",null,{"$f":"D49","v":0.10439999999999999},{"$f":"E49","v":0}]
["4.5","GRUPO \"E\"",null,{"$f":"D54","v":1.03E-2},{"$f":"E54","v":0}]
["TOTAL - Encargos Sociais e Trabalhistas:",null,null,{"$f":"SUM(D59:D63)","v":0.84980000000000011},{"$f":"SUM(E59:E63)","v":0}]

{"sheet":"Encargos Sociais Ceará","index":8,"n_rows":69,"n_cols":5,"rows_kept":69,"cut":false,"hidden":false,"merged":[[65,1,65,2],[66,1,66,2],[68,0,68,2],[52,1,52,2],[53,1,53,2],[56,1,56,2],[57,1,57,2],[58,0,58,2],[67,1,67,2],[64,1,64,2],[51,1,51,2],[54,0,54,2],[61,1,61,2],[62,1,62,2],[63,1,63,2],[45,1,45,2],[46,1,46,2],[47,0,47,2],[49,1,49,2],[50,1,50,2],[44,1,44,2],[33,1,33,2],[34,0,34,2],[35,0,35,4],[36,1,36,2],[37,1,37,2],[38,1,38,2],[39,0,39,2],[40,0,40,4],[41,1,41,2],[42,1,42,2],[43,1,43,2],[32,1,32,2],[21,1,21,2],[22,1,22,2],[23,1,23,2],[24,0,24,2],[25,0,25,4],[26,1,26,2],[27,1,27,2],[28,1,28,2],[29,1,29,2],[30,1,30,2],[31,1,31,2],[20,1,20,2],[4,0,7,4],[9,0,9,4],[10,0,10,4],[11,0,11,3],[13,0,13,4],[14,0,14,4],[15,1,15,2],[16,1,16,2],[17,1,17,2],[18,1,18,2],[19,1,19,2]]}
[]
[]
[]
[]
["Prestação de serviços continuados de vigilância armada, visando à segurança das obras civis, das instalações dos canteiros de obras e dos equipamentos hidromecânicos e eletromecânicos do PISF – projeto de integração do rio São Francisco com as bacias hidrográficas do nordeste setentrional, com área de atuação no estado de Pernambuco"]
[]
[]
[]
[]
["MÓDULO 4: ENCARGOS SOCIAIS E TRABALHISTAS"]
[]
["Total da Remuneração Mensal - Total (01 Posto):",null,null,null,{"$f":"'Posto Fixo 24h - Ceará'!E48","v":0}]
[]
["MÓDULO 4: ENCARGOS SOCIAIS E TRABALHISTAS"]
["NOTA: Os percentuais dos encargos previdenciários e FGTS, a serem preenchidos na coluna %, são aqueles estabelecidos pela legislação vigente, incidentes sobre a remuneração"]
["4.1","GRUPO \"A\" - Encargos Previdenciários e FGTS",null,"%","Valor (R$)"]
["A","INSS (Art. 22 inciso I da Lei 8.212/91) ",null,0.2,{"$f":"D17*$E$12","v":0}]
["B","FGTS (Art. 15 da Lei 8030/90 art. 7° inciso III CF/88)",null,0.08,{"$f":"D18*$E$12","v":0}]
["C","SAT",null,0.03,{"$f":"D19*$E$12","v":0}]
["D","Salário Educação (Art. 3° inciso I Decreto 87.043/)",null,2.5000000000000001E-2,0]
["E","SESC/SESI (Art. 3° da Lei 8036/90)",null,1.4999999999999999E-2,0]
["F","SENAC/SENAI (Decreto 2.318/86)",null,0.01,0]
["G","SEBRAE (Art. 8° Lei 8029/90 e 8154 de 28/12/90)",null,6.0000000000000001E-3,0]
["H","INCRA  (Lei 7787 de 30/06/890e DL 1146/70)",null,2E-3,0]
["TOTAL - Grupo A:",null,null,{"$f":"SUM(D17:D24)","v":0.3680000000000001},{"$f":"SUM(E17:E24)","v":0}]
[]
["4.2","GRUPO \"B\" - Custo de Reposição do Profissional Ausente ",null,"%","Valor (R$)"]
["A","Férias",null,9.4700000000000006E-2,{"$f":"D28*$E$12","v":0}]
["B","Auxílio Doença",null,3.3099999999999997E-2,0]
["C","Acidente de Trabalho",null,1.4E-3,0]
["D","Auxílio Paternidade",null,2.9999999999999997E-4,0]
["E","Faltas Legais",null,6.0000000000000001E-3,0]
["F","Reciclegem Art. 91 Decreto 992MJ + Treinamento NR%",null,{"$f":"1.26%+0.32%","v":1.5800000000000002E-2},0]
["G","Aviso Prévio Trabalhado",null,2.0000000000000001E-4,{"$f":"D34*$E$12","v":0}]
["TOTAL - Grupo B:",null,null,{"$f":"SUM(D28:D34)","v":0.15150000000000002},{"$f":"SUM(E28:E34)","v":0}]
[]
["4.3","GRUPO \"C\" - 13º Salário e Adicional de Férias",null,"%","Valor (R$)"]
["A","1/3 Férias Constitucional",null,3.1600000000000003E-2,{"$f":"D38*$E$12","v":0}]
["B","13º Salário",null,9.4700000000000006E-2,{"$f":"D39*$E$12","v":0}]
["TOTAL - Grupo C:",null,null,{"$f":"SUM(D38:D39)","v":0.12630000000000002},{"$f":"SUM(E38:E39)","v":0}]
[]
["4.4","GRUPO \"D\" - Provisão para Rescisão",null,"%","Valor (R$)"]
["A","Aviso Prévio Indenizado",null,2.2700000000000001E-2,{"$f":"D43*$E$12","v":0}]
["B","Reflexos no Aviso Prévio Indenizado",null,4.4000000000000003E-3,{"$f":"D44*$E$12","v":0}]
["C","Multa do FGTS do Aviso Prévio Trabalhado",null,3.3799999999999997E-2,0]
["D","Contribuição Social Art. 1º Lei 110/91",null,1.09E-2,0]
["E","Indenização Adicional",null,2.5000000000000001E-3,0]
["TOTAL - Grupo D:",null,null,{"$f":"SUM(D43:D47)","v":7.4300000000000005E-2},{"$f":"SUM(E43:E47)","v":0}]
[]
["4.5","GRUPO \"E\" ",null,"%","Valor (R$)"]
["A","FGTS S/ Aviso Prévio Indenizado",null,1.8E-3,{"$f":"D51*$E$12","v":0}]
["B","Incidências sobre o Salário Maternidde",null,5.9999999999999995E-4,{"$f":"D52*$E$12","v":0}]
["C","Incidências sobre o 13º Salário Av. Prévio",null,5.9999999999999995E-4,{"$f":"D53*$E$12","v":0}]
["D","Abono Pecuniário",null,0,0]
["TOTAL - Grupo E:",null,null,{"$f":"SUM(D51:D54)","v":2.9999999999999996E-3},{"$f":"SUM(E51:E54)","v":0}]
[]
["4.6","GRUPO \"F\" ",null,"%","Valor (R$)"]
["A","Incidência do Grupo \"A\" s/ o Grupo \"B\"",null,0.10059999999999999,{"$f":"D58*$E$12","v":0}]
["TOTAL - Grupo E:",null,null,{"$f":"SUM(D58)","v":0.10059999999999999},{"$f":"SUM(E58)","v":0}]
[]
[]
[4,"(QUADRO-RESUMO) MÓDULO 4: ENCARGOS SOCIAIS E TRABALHISTAS",null,"%","Valor (R$)"]
["4.1","GRUPO \"A\"",null,{"$f":"D25","v":0.3680000000000001},{"$f":"E25","v":0}]
["4.2","GRUPO \"B\"",null,{"$f":"D35","v":0.15150000000000002},{"$f":"E35","v":0}]
["4.3","GRUPO \"C\"",null,{"$f":"D40","v":0.12630000000000002},{"$f":"E40","v":0}]
["4.4","GRUPO \"D\"",null,{"$f":"D48","v":7.4300000000000005E-2},{"$f":"E48","v":0}]
["4.5","GRUPO \"E\"",null,{"$f":"D55","v":2.9999999999999996E-3},{"$f":"E55","v":0}]
["4.6","GRUPO \"F\"",null,{"$f":"D59","v":0.10059999999999999},{"$f":"E59","v":0}]
["TOTAL - Encargos Sociais e Trabalhistas:",null,null,{"$f":"SUM(D63:D67)","v":0.72310000000000019},{"$f":"SUM(E63:E68)","v":0}]

{"sheet":"Encargos Sociais Pernambuco","index":9,"n_rows":52,"n_cols":5,"rows_kept":52,"cut":false,"hidden":false,"merged":[[39,1,39,2],[40,0,40,2],[41,0,41,4],[44,0,44,2],[45,0,45,4],[42,1,42,2],[43,1,43,2],[46,1,46,2],[47,1,47,2],[51,0,51,2],[48,1,48,2],[49,1,49,2],[50,1,50,2],[38,1,38,2],[27,1,27,2],[28,1,28,2],[29,1,29,2],[30,1,30,2],[32,1,32,2],[33,1,33,2],[34,0,34,2],[35,0,35,4],[36,1,36,2],[37,1,37,2],[31,1,31,2],[26,1,26,2],[15,1,15,2],[16,1,16,2],[17,1,17,2],[18,1,18,2],[19,1,19,2],[20,1,20,2],[21,1,21,2],[22,1,22,2],[23,1,23,2],[24,0,24,2],[25,0,25,4],[14,0,14,4],[4,0,7,4],[9,0,9,4],[10,0,10,4],[11,0,11,3],[13,0,13,4]]}
[]
[]
[]
[]
["Prestação de serviços continuados de vigilância armada, visando à segurança das obras civis, das instalações dos canteiros de obras e dos equipamentos hidromecânicos e eletromecânicos do PISF – projeto de integração do rio São Francisco com as bacias hidrográficas do nordeste setentrional, com área de atuação no estado de Pernambuco"]
[]
[]
[]
[]
["MÓDULO 4: ENCARGOS SOCIAIS E TRABALHISTAS"]
[]
["Total da Remuneração Mensal - Total (01 Posto):",null,null,null,{"$f":"'Posto Fixo 24h - Pernambuco'!E49","v":0}]
[]
["MÓDULO 4: ENCARGOS SOCIAIS E TRABALHISTAS"]
["NOTA: Os percentuais dos encargos previdenciários e FGTS, a serem preenchidos na coluna %, são aqueles estabelecidos pela legislação vigente, incidentes sobre a remuneração"]
["4.1","GRUPO \"A\"",null,"%","Valor (R$)"]
["A","INSS (Art. 22 inciso I da Lei 8.212/91) ",null,0.2,{"$f":"D17*$E12","v":0}]
["B","FGTS (Art. 15 da Lei 8030/90 art. 7° inciso III CF/88)",null,0.08,{"$f":"D18*$E$17","v":0}]
["C","Riscos Ambientais do Trabalho - RAT x FAP - (Decreto 3.048/1999, Anexo V e Decreto 6.957/2009)  ",null,3.7400000000000003E-2,0]
["D","Salário Educação (Art. 3° inciso I Decreto 87.043/)",null,2.5000000000000001E-2,0]
["E","SESC/SESI (Art. 3° da Lei 8036/90)",null,1.4999999999999999E-2,0]
["F","SENAC/SENAI (Decreto 2.318/86)",null,0.01,0]
["G","SEBRAE (Art. 8° Lei 8029/90 e 8154 de 28/12/90)",null,6.0000000000000001E-3,0]
["H","INCRA  (Lei 7787 de 30/06/890e DL 1146/70)",null,2E-3,0]
["TOTAL - Grupo A:",null,null,{"$f":"SUM(D17:D24)","v":0.37540000000000007},{"$f":"SUM(E17:E24)","v":0}]
[]
["4.2","GRUPO \"B\"",null,"%","Valor (R$)"]
["A","Férias e Um Terço Constitucional",null,0.1111,{"$f":"D28*$E23","v":0}]
["B","Auxílio Doença",null,1.66E-2,{"$f":"D29*$E$17","v":0}]
["C","Licença Maternidade/Paternidade",null,8.0000000000000004E-4,0]
["D","Faltas Legais",null,1.17E-2,0]
["E","Acidente de Trabalho",null,2.7000000000000001E-3,0]
["F","Aviso Prévio Trabalhado",null,2.0000000000000001E-4,0]
["G","13º Salário",null,8.3299999999999999E-2,0]
["TOTAL - Grupo B:",null,null,{"$f":"SUM(D28:D34)","v":0.22639999999999999},{"$f":"SUM(E28:E34)","v":0}]
[]
["4.3","GRUPO \"C\"",null,"%","Valor (R$)"]
["A","Aviso Prévio Indenizado",null,4.0300000000000002E-2,{"$f":"D38*$E33","v":0}]
["B","Indenização Adicional",null,4.0000000000000001E-3,{"$f":"D39*$E$17","v":0}]
["C","Indenização (rescisões sem justa causa) - Multa FGTS + 10% LC nº 110/01",null,2.4799999999999999E-2,{"$f":"D40*$E$17","v":0}]
["TOTAL - Grupo C:",null,null,{"$f":"SUM(D38:D40)","v":6.9100000000000009E-2},{"$f":"SUM(E38:E40)","v":0}]
[]
["4.4","GRUPO \"D\"",null,"%","Valor (R$)"]
["A","Incidência do grupo \"A\" sobre o grupo \"B\"",null,{"$f":"D25*D35","v":8.4990560000000007E-2},{"$f":"D44*$E39","v":0}]
["TOTAL - Grupo D:",null,null,{"$f":"SUM(D44:D44)","v":8.4990560000000007E-2},{"$f":"SUM(E44:E44)","v":0}]
[]
[4,"(QUADRO-RESUMO) MÓDULO 4: ENCARGOS SOCIAIS E TRABALHISTAS",null,"%","Valor (R$)"]
["4.1","GRUPO \"A\"",null,{"$f":"D25","v":0.37540000000000007},{"$f":"E25","v":0}]
["4.2","GRUPO \"B\"",null,{"$f":"D35","v":0.22639999999999999},{"$f":"E35","v":0}]
["4.3","GRUPO \"C\"",null,{"$f":"D41","v":6.9100000000000009E-2},{"$f":"E41","v":0}]
["4.4","GRUPO \"D\"",null,{"$f":"D45","v":8.4990560000000007E-2},{"$f":"E45","v":0}]
["TOTAL - Encargos Sociais e Trabalhistas:",null,null,{"$f":"SUM(D48:D51)","v":0.75589056000000021},{"$f":"SUM(E48:E51)","v":0}]